fUSD/lending_fUSD_20240125
["ID","MTS","AMOUNT","RATE_DAILY","PERIOD"]
[312727726,1706189476600,-500.0,0.00052054,31]
[312727727,1706189476610,-500.0,0.00052054,10]
[312727728,1706189476620,-500.0,0.00052054,31]
[312727729,1706189476630,-533.04,0.00052054,31]
[312727730,1706189476642,-500.0,0.00052054,31]
[312727731,1706189476652,-500.0,0.00052054,31]
[312727732,1706189476662,-500.0,0.00052054,31]
[312727733,1706189476671,-500.0,0.00052054,31]
[312727734,1706189476680,-1263.99,0.00052054,31]
[312727735,1706189476689,-500.0,0.00052054,31]
[312727736,1706189476698,-500.0,0.00052054,31]
[312727737,1706189476708,-349.69,0.00052054,31]
[312727738,1706189476717,-500.0,0.00052054,31]
[312727739,1706189476727,-500.0,0.00052054,31]
[312727740,1706189476736,-4443.62,0.00052054,31]
[312727741,1706189476746,-500.0,0.00052054,31]
[312727742,1706189476756,-179.02076878,0.00052054,31]
[312727743,1706189476765,-500.0,0.00052054,31]
[312727744,1706189476774,-500.0,0.00052054,31]
[312727745,1706189476784,-5133.55,0.00052054,5]
[312727746,1706189476794,-500.0,0.00052054,31]
[312727747,1706189476803,-876.57,0.00052054,31]
[312727748,1706189476813,-793.58,0.00052054,31]
[312727749,1706189476823,-500.0,0.00052054,31]
[312727750,1706189476833,-500.0,0.00052054,31]
[312727751,1706189476844,-605.29,0.00052054,31]
[312727752,1706189476853,-500.0,0.00052054,31]
[312727753,1706189476862,-500.0,0.00052054,31]
[312727754,1706189476872,-798.73,0.00052054,31]
[312727755,1706189476881,-741.46,0.00052054,31]
[312727756,1706189476890,-500.0,0.00052054,31]
[312727757,1706189476899,-500.0,0.00052054,31]
[312727758,1706189476908,-500.0,0.00052054,31]
[312727759,1706189476918,-522.59,0.00052054,31]
[312727760,1706189476927,-430.65943471,0.00052054,31]
[312727761,1706189476937,-1440.42,0.00052054,31]
[312727762,1706189476947,-500.0,0.00052054,31]
[312727763,1706189476958,-3848.63,0.00052054,31]
[312727764,1706189476968,-1000.0,0.00052054,7]
[312727765,1706189476978,-659.44,0.00052054,31]
[312727766,1706189476987,-960.66,0.00052054,31]
[312727767,1706189476997,-3294.47,0.00052054,31]
[312727768,1706189477006,-1413.54,0.00052054,31]
[312727769,1706189477016,-557.9,0.00052054,31]
[312727770,1706189477027,-500.0,0.00052054,31]
[312727771,1706189477036,-568.25216519,0.00052054,31]
[312727772,1706189477045,-500.0,0.00052054,31]
[312727773,1706189477054,-500.0,0.00052054,31]
[312727774,1706189477063,-500.0,0.00052054,31]
[312727775,1706189477073,-554.73530453,0.00052054,31]
[312727776,1706189477083,-220.55580091,0.00052054,31]
[312727777,1706189477093,-500.0,0.00052054,31]
[312727778,1706189477102,-500.0,0.00052054,31]
[312727779,1706189477111,-500.0,0.00052054,31]
[312727780,1706189477121,-658.39,0.00052054,31]
[312727781,1706189477130,-500.0,0.00052054,31]
[312727782,1706189477140,-500.0,0.00052054,31]
[312727783,1706189477149,-707.38,0.00052054,31]
[312727784,1706189477288,-806.49,0.00052054,31]
[312727785,1706189477311,-191.19138812,0.00052054,31]
[312727786,1706189477320,-534.89,0.00052054,31]
[312727787,1706189477330,-1000.0,0.00052054,7]
[312727788,1706189477340,-500.0,0.00052054,31]
[312727789,1706189477349,-150.0,0.00052054,120]
[312727790,1706189477358,-500.0,0.00052054,31]
[312727791,1706189477368,-500.0,0.00052054,31]
[312727792,1706189477377,-500.0,0.00052054,31]
[312727793,1706189477387,-2660.25,0.00052054,31]
[312727794,1706189477396,-500.0,0.00052054,31]
[312727795,1706189477405,-500.0,0.00052054,31]
[312727796,1706189477415,-500.0,0.00052054,31]
[312727797,1706189477424,-654.66,0.00052054,31]
[312727798,1706189477434,-1220.14,0.00052054,31]
[312727799,1706189477443,-500.0,0.00052054,31]
[312727800,1706189477453,-500.0,0.00052054,31]
[312727801,1706189477463,-500.0,0.00052054,31]
[312727802,1706189477472,-697.52,0.00052054,31]
[312727803,1706189477482,-1219.85,0.00052054,31]
[312727804,1706189477492,-500.0,0.00052054,31]
[312727805,1706189477502,-500.0,0.00052054,31]
[312727806,1706189477511,-500.0,0.00052054,31]
[312727807,1706189477520,-500.0,0.00052054,31]
[312727808,1706189477530,-2328.6,0.00052054,31]
[312727809,1706189477539,-500.0,0.00052054,31]
[312727810,1706189477548,-553.77,0.00052054,31]
[312727811,1706189477557,-500.0,0.00052054,31]
[312727812,1706189477566,-2392.7,0.00052054,31]
[312727813,1706189477575,-742.25,0.00052054,31]
[312727814,1706189477585,-500.0,0.00052054,31]
[312727815,1706189477596,-418.84232438,0.00052054,31]
[312727816,1706189477606,-500.0,0.00052054,31]
[312727817,1706189477618,-766.81,0.00052054,31]
[312727818,1706189477629,-500.0,0.00052054,31]
[312727819,1706189477638,-500.0,0.00052054,31]
[312727820,1706189477647,-500.0,0.00052054,31]
[312727821,1706189477656,-500.0,0.00052054,31]
[312727822,1706189477666,-720.22,0.00052054,31]
[312727823,1706189477675,-582.80889276,0.00052054,31]
[312727824,1706189477684,-506.85,0.00052054,31]
[312727825,1706189477694,-2585.71,0.00052054,31]
[312727826,1706189477703,-500.0,0.00052054,31]
[312727827,1706189477715,-895.53,0.00052054,2]
[312727828,1706189477724,-500.0,0.00052054,31]
[312727829,1706189477734,-1966.47,0.00052054,30]
[312727830,1706189477743,-500.0,0.00052054,31]
[312727831,1706189477752,-500.0,0.00052054,31]
[312727832,1706189477762,-500.0,0.00052054,31]
[312727833,1706189477771,-568.09,0.00052054,31]
[312727834,1706189477780,-500.0,0.00052054,31]
[312727835,1706189477789,-563.0,0.00052054,31]
[312727836,1706189477799,-1097.13,0.00052054,31]
[312727837,1706189477808,-678.21,0.00052054,31]
[312727838,1706189477818,-611.67825908,0.00052054,31]
[312727839,1706189477828,-500.0,0.00052054,31]
[312727840,1706189477840,-505.22,0.00052054,31]
[312727841,1706189477850,-1184.05,0.00052054,7]
[312727842,1706189477859,-500.0,0.00052054,31]
[312727843,1706189477869,-1978.23,0.00052054,31]
[312727844,1706189477879,-775.02,0.00052054,31]
[312727845,1706189477889,-500.0,0.00052054,31]
[312727846,1706189477901,-500.0,0.00052054,31]
[312727847,1706189477910,-500.0,0.00052054,31]
[312727848,1706189477920,-500.0,0.00052054,31]
[312727849,1706189477930,-500.0,0.00052054,31]
[312727850,1706189477939,-500.0,0.00052054,31]
[312727851,1706189477948,-1788.81,0.00052054,31]
[312727852,1706189477958,-563.64,0.00052054,31]
[312727853,1706189477967,-500.0,0.00052054,31]
[312727854,1706189477978,-824.87,0.00052054,31]
[312727855,1706189477988,-800.86,0.00052054,31]
[312727856,1706189477997,-500.0,0.00052054,31]
[312727857,1706189478009,-500.0,0.00052054,31]
[312727858,1706189478019,-624.88,0.00052054,31]
[312727859,1706189478028,-500.0,0.00052054,31]
[312727860,1706189478037,-500.0,0.00052054,31]
[312727861,1706189478047,-500.0,0.00052054,31]
[312727862,1706189478056,-500.0,0.00052054,31]
[312727863,1706189478065,-500.0,0.00052054,31]
[312727864,1706189478075,-3861.01,0.00052054,5]
[312727865,1706189478084,-500.0,0.00052054,31]
[312727866,1706189478095,-500.0,0.00052054,31]
[312727867,1706189478104,-500.0,0.00052054,31]
[312727868,1706189478113,-562.52,0.00052054,31]
[312727869,1706189478123,-702.37,0.00052054,31]
[312727870,1706189478133,-500.0,0.00052054,31]
[312727871,1706189478143,-500.0,0.00052054,31]
[312727872,1706189478153,-500.0,0.00052054,31]
[312727873,1706189478163,-500.0,0.00052054,31]
[312727874,1706189478172,-500.0,0.00052054,31]
[312727875,1706189478182,-500.0,0.00052054,31]
[312727876,1706189478191,-1562.8,0.00052054,31]
[312727877,1706189478202,-500.0,0.00052054,31]
[312727878,1706189478212,-729.44,0.00052054,31]
[312727879,1706189478222,-674.25,0.00052054,31]
[312727880,1706189478231,-500.0,0.00052054,31]
[312727881,1706189478241,-500.0,0.00052054,31]
[312727882,1706189478252,-1360.58,0.00052054,31]
[312727883,1706189478261,-530.21,0.00052054,31]
[312727884,1706189478271,-694.83,0.00052054,2]
[312727885,1706189478281,-500.0,0.00052054,31]
[312727886,1706189478291,-500.0,0.00052054,31]
[312727887,1706189478301,-500.0,0.00052054,31]
[312727888,1706189478311,-650.93,0.00052054,31]
[312727889,1706189478320,-622.63,0.00052054,31]
[312727890,1706189478330,-500.0,0.00052054,31]
[312727891,1706189478340,-1172.34,0.00052054,31]
[312727892,1706189478350,-750.0,0.00052054,120]
[312727893,1706189478359,-1372.24,0.00052054,31]
[312727894,1706189478368,-500.0,0.00052054,31]
[312727895,1706189478379,-500.0,0.00052054,31]
[312727896,1706189478389,-500.0,0.00052054,31]
[312727897,1706189478398,-500.0,0.00052054,31]
[312727898,1706189478407,-500.0,0.00052054,31]
[312727899,1706189478416,-1771.9,0.00052054,31]
[312727900,1706189478426,-147143.38,0.00052055,30]
[312727901,1706189478435,-156.59321412,0.00052075,60]
[312727902,1706189478444,-2190.0,0.0005209,2]
[312727903,1706189478454,-553.0,0.0005209,2]
[312727904,1706189478463,-151.0125,0.00052098,28]
[312727905,1706189478473,-25000.0,0.000521,2]
[312727906,1706189478481,-10000.0,0.000521,2]
[312727907,1706189478491,-259.82,0.000521,7]
[312727908,1706189478501,-259.82,0.000521,7]
[312727909,1706189478511,-259.82,0.000521,7]
[312727910,1706189478521,-259.82,0.000521,7]
[312727911,1706189478530,-259.82,0.000521,7]
[312727912,1706189478540,-259.82,0.000521,7]
[312727913,1706189478549,-259.82,0.000521,7]
[312727914,1706189478559,-259.82,0.000521,7]
[312727915,1706189478568,-259.82,0.000521,7]
[312727916,1706189478578,-259.82,0.000521,7]
[312727917,1706189478589,-259.82,0.000521,7]
[312727918,1706189478598,-259.82,0.000521,7]
[312727919,1706189478608,-259.82,0.000521,7]
[312727920,1706189478618,-259.82,0.000521,7]
[312727921,1706189478628,-259.82,0.000521,7]
[312727922,1706189478641,-259.82,0.000521,7]
[312727923,1706189478651,-259.82,0.000521,7]
[312727924,1706189478660,-259.82,0.000521,7]
[312727925,1706189478670,-259.82,0.000521,7]
[312727926,1706189478679,-259.82,0.000521,7]
[312727927,1706189478689,-8000.0,0.000521,5]
[312727928,1706189478698,-180.84621878,0.00052128,60]
[312727929,1706189478708,-150.0125,0.00052198,22]
[312727930,1706189478718,-157.23945592,0.00052226,30]
[312727931,1706189478727,-180.84621878,0.00052251,60]
[312727932,1706189478737,-250.0,0.0005227,7]
[312727933,1706189478746,-300.0,0.0005227,7]
[312727934,1706189478755,-167.0125,0.00052298,24]
[312727935,1706189478765,-266.529936,0.000523,19]
[312727936,1706189478774,-500.0,0.000523,19]
[312727937,1706189478784,-500.0,0.000523,19]
[312727938,1706189478793,-814.1022,0.000523,30]
[312727939,1706189478803,-814.1022,0.000523,30]
[312727940,1706189478814,-204.0,0.0005232,30]
[312727941,1706189478825,-208.0,0.0005232,30]
[312727942,1706189478834,-500.0,0.00052328,31]
[312727943,1706189478848,-314.65875627,0.00052328,31]
[312727944,1706189478857,-500.0,0.00052328,31]
[312727945,1706189478867,-500.0,0.00052328,31]
[312727946,1706189478876,-500.0,0.00052328,31]
[312727947,1706189478886,-500.0,0.00052328,31]
[312727948,1706189478896,-500.0,0.00052328,14]
[312727949,1706189478906,-504.11,0.00052328,31]
[312727950,1706189478916,-500.0,0.00052328,31]
[312727951,1706189478925,-500.0,0.00052328,31]
[312727952,1706189478936,-500.0,0.00052328,31]
[312727953,1706189478945,-500.0,0.00052328,31]
[312727954,1706189478956,-500.0,0.00052328,31]
[312727955,1706189478967,-511.82,0.00052328,31]
[312727956,1706189478976,-500.0,0.00052328,31]
[312727957,1706189478985,-578.99,0.00052328,31]
[312727958,1706189478994,-732.03,0.00052328,31]
[312727959,1706189479004,-500.0,0.00052328,2]
[312727960,1706189479014,-662.95,0.00052328,31]
[312727961,1706189479023,-501.24001821,0.00052328,2]
[312727962,1706189479033,-500.0,0.00052328,31]
[312727963,1706189479042,-500.0,0.00052328,31]
[312727964,1706189479052,-500.0,0.00052328,31]
[312727965,1706189479061,-466.15729508,0.00052328,31]
[312727966,1706189479070,-500.0,0.00052328,31]
[312727967,1706189479079,-500.0,0.00052328,31]
[312727968,1706189479090,-500.0,0.00052328,31]
[312727969,1706189479100,-500.0,0.00052328,31]
[312727970,1706189479110,-11681.64124954,0.00052328,4]
[312727971,1706189479120,-500.0,0.00052328,31]
[312727972,1706189479130,-500.0,0.00052328,31]
[312727973,1706189479141,-706.68,0.00052328,31]
[312727974,1706189479150,-500.0,0.00052328,31]
[312727975,1706189479160,-500.0,0.00052328,31]
[312727976,1706189479170,-870.14453575,0.00052328,4]
[312727977,1706189479179,-500.0,0.00052328,31]
[312727978,1706189479188,-511.95,0.00052328,31]
[312727979,1706189479197,-500.0,0.00052328,31]
[312727980,1706189479206,-500.0,0.00052328,31]
[312727981,1706189479216,-500.0,0.00052328,31]
[312727982,1706189479225,-500.0,0.00052328,31]
[312727983,1706189479235,-500.0,0.00052328,31]
[312727984,1706189479245,-500.0,0.00052328,31]
[312727985,1706189479254,-500.0,0.00052328,31]
[312727986,1706189479264,-500.0,0.00052328,31]
[312727987,1706189479274,-500.0,0.00052328,31]
[312727988,1706189479283,-500.0,0.00052328,31]
[312727989,1706189479292,-500.0,0.00052328,31]
[312727990,1706189479302,-586.25,0.00052328,31]
[312727991,1706189479311,-166.25576733,0.00052328,31]
[312727992,1706189479320,-500.0,0.00052328,31]
[312727993,1706189479330,-500.0,0.00052328,31]
[312727994,1706189479340,-500.0,0.00052328,31]
[312727995,1706189479349,-500.0,0.00052328,31]
[312727996,1706189479359,-847.89,0.00052328,31]
[312727997,1706189479368,-500.0,0.00052328,31]
[312727998,1706189479378,-321.71628099,0.00052328,31]
[312727999,1706189479387,-847.27,0.00052328,31]
[312728000,1706189479396,-553.41,0.00052328,2]
[312728001,1706189479406,-500.0,0.00052328,31]
[312728002,1706189479415,-500.0,0.00052328,31]
[312728003,1706189479425,-552.54,0.00052328,31]
[312728004,1706189479434,-500.0,0.00052328,31]
[312728005,1706189479443,-500.0,0.00052328,31]
[312728006,1706189479453,-333.16155622,0.00052328,31]
[312728007,1706189479464,-500.0,0.00052328,10]
[312728008,1706189479474,-500.0,0.00052328,31]
[312728009,1706189479483,-533.04,0.00052328,31]
[312728010,1706189479492,-500.0,0.00052328,31]
[312728011,1706189479503,-500.0,0.00052328,31]
[312728012,1706189479512,-500.0,0.00052328,31]
[312728013,1706189479522,-500.0,0.00052328,31]
[312728014,1706189479532,-1263.99,0.00052328,31]
[312728015,1706189479542,-500.0,0.00052328,31]
[312728016,1706189479552,-500.0,0.00052328,31]
[312728017,1706189479564,-500.0,0.00052328,31]
[312728018,1706189479573,-500.0,0.00052328,31]
[312728019,1706189479584,-4443.62,0.00052328,31]
[312728020,1706189479596,-500.0,0.00052328,31]
[312728021,1706189479606,-500.0,0.00052328,31]
[312728022,1706189479617,-500.0,0.00052328,31]
[312728023,1706189479630,-5133.55,0.00052328,5]
[312728024,1706189479640,-876.57,0.00052328,31]
[312728025,1706189479650,-500.0,0.00052328,31]
[312728026,1706189479659,-793.58,0.00052328,31]
[312728027,1706189479671,-480.25433098,0.00052328,31]
[312728028,1706189479683,-500.0,0.00052328,31]
[312728029,1706189479692,-605.29,0.00052328,31]
[312728030,1706189479703,-500.0,0.00052328,31]
[312728031,1706189479715,-798.73,0.00052328,31]
[312728032,1706189479725,-500.0,0.00052328,31]
[312728033,1706189479735,-741.46,0.00052328,31]
[312728034,1706189479745,-500.0,0.00052328,31]
[312728035,1706189479756,-500.0,0.00052328,31]
[312728036,1706189479766,-500.0,0.00052328,31]
[312728037,1706189479777,-522.59,0.00052328,31]
[312728038,1706189479788,-1440.42,0.00052328,31]
[312728039,1706189479797,-500.0,0.00052328,31]
[312728040,1706189479807,-3848.63,0.00052328,31]
[312728041,1706189479817,-1000.0,0.00052328,7]
[312728042,1706189479826,-659.44,0.00052328,31]
[312728043,1706189479835,-960.66,0.00052328,31]
[312728044,1706189479846,-3294.47,0.00052328,31]
[312728045,1706189479855,-1413.54,0.00052328,31]
[312728046,1706189479864,-557.9,0.00052328,31]
[312728047,1706189479874,-500.0,0.00052328,31]
[312728048,1706189479883,-500.0,0.00052328,31]
[312728049,1706189479892,-522.96503534,0.00052328,31]
[312728050,1706189479902,-500.0,0.00052328,31]
[312728051,1706189479911,-500.0,0.00052328,31]
[312728052,1706189479921,-500.0,0.00052328,31]
[312728053,1706189479933,-500.0,0.00052328,31]
[312728054,1706189479944,-658.39,0.00052328,31]
[312728055,1706189479954,-500.0,0.00052328,31]
[312728056,1706189479964,-500.0,0.00052328,31]
[312728057,1706189479973,-707.38,0.00052328,31]
[312728058,1706189479983,-806.49,0.00052328,31]
[312728059,1706189479992,-534.89,0.00052328,31]
[312728060,1706189480002,-1000.0,0.00052328,7]
[312728061,1706189480012,-500.0,0.00052328,31]
[312728062,1706189480021,-500.0,0.00052328,31]
[312728063,1706189480030,-500.0,0.00052328,31]
[312728064,1706189480039,-500.0,0.00052328,31]
[312728065,1706189480049,-2660.25,0.00052328,31]
[312728066,1706189480058,-500.0,0.00052328,31]
[312728067,1706189480067,-500.0,0.00052328,31]
[312728068,1706189480076,-500.0,0.00052328,31]
[312728069,1706189480086,-654.66,0.00052328,31]
[312728070,1706189480097,-1220.14,0.00052328,31]
[312728071,1706189480106,-500.0,0.00052328,31]
[312728072,1706189480250,-500.0,0.00052328,31]
[312728073,1706189480260,-500.0,0.00052328,31]
[312728074,1706189480270,-697.52,0.00052328,31]
[312728075,1706189480280,-1219.85,0.00052328,31]
[312728076,1706189480290,-500.0,0.00052328,31]
[312728077,1706189480299,-500.0,0.00052328,31]
[312728078,1706189480308,-500.0,0.00052328,31]
[312728079,1706189480318,-2328.6,0.00052328,31]
[312728080,1706189480327,-500.0,0.00052328,31]
[312728081,1706189480336,-500.0,0.00052328,31]
[312728082,1706189480348,-553.77,0.00052328,31]
[312728083,1706189480358,-2392.7,0.00052328,31]
[312728084,1706189480367,-500.0,0.00052328,31]
[312728085,1706189480377,-742.25,0.00052328,31]
[312728086,1706189480386,-500.0,0.00052328,31]
[312728087,1706189480396,-500.0,0.00052328,31]
[312728088,1706189480405,-766.81,0.00052328,31]
[312728089,1706189480416,-500.0,0.00052328,31]
[312728090,1706189480425,-500.0,0.00052328,31]
[312728091,1706189480434,-500.0,0.00052328,31]
[312728092,1706189480444,-500.0,0.00052328,31]
[312728093,1706189480453,-720.22,0.00052328,31]
[312728094,1706189480462,-506.85,0.00052328,31]
[312728095,1706189480472,-2585.71,0.00052328,31]
[312728096,1706189480482,-500.0,0.00052328,31]
[312728097,1706189480491,-895.53,0.00052328,2]
[312728098,1706189480500,-500.0,0.00052328,31]
[312728099,1706189480511,-1966.47,0.00052328,30]
[312728100,1706189480520,-500.0,0.00052328,31]
[312728101,1706189480529,-500.0,0.00052328,31]
[312728102,1706189480539,-500.0,0.00052328,31]
[312728103,1706189480548,-568.09,0.00052328,31]
[312728104,1706189480557,-500.0,0.00052328,31]
[312728105,1706189480567,-1097.13,0.00052328,31]
[312728106,1706189480576,-563.0,0.00052328,31]
[312728107,1706189480585,-678.21,0.00052328,31]
[312728108,1706189480595,-500.0,0.00052328,31]
[312728109,1706189480604,-505.22,0.00052328,31]
[312728110,1706189480613,-1184.05,0.00052328,7]
[312728111,1706189480623,-500.0,0.00052328,31]
[312728112,1706189480633,-1978.23,0.00052328,31]
[312728113,1706189480645,-775.02,0.00052328,31]
[312728114,1706189480654,-500.0,0.00052328,31]
[312728115,1706189480663,-500.0,0.00052328,31]
[312728116,1706189480672,-500.0,0.00052328,31]
[312728117,1706189480683,-500.0,0.00052328,31]
[312728118,1706189480692,-500.0,0.00052328,31]
[312728119,1706189480701,-500.0,0.00052328,31]
[312728120,1706189480710,-563.64,0.00052328,31]
[312728121,1706189480720,-1788.81,0.00052328,31]
[312728122,1706189480729,-500.0,0.00052328,31]
[312728123,1706189480739,-824.87,0.00052328,31]
[312728124,1706189480748,-800.86,0.00052328,31]
[312728125,1706189480757,-500.0,0.00052328,31]
[312728126,1706189480766,-500.0,0.00052328,31]
[312728127,1706189480776,-624.88,0.00052328,31]
[312728128,1706189480785,-500.0,0.00052328,31]
[312728129,1706189480794,-500.0,0.00052328,31]
[312728130,1706189480804,-500.0,0.00052328,31]
[312728131,1706189480813,-500.0,0.00052328,31]
[312728132,1706189480822,-3861.01,0.00052328,5]
[312728133,1706189480831,-500.0,0.00052328,31]
[312728134,1706189480842,-500.0,0.00052328,31]
[312728135,1706189480851,-500.0,0.00052328,31]
[312728136,1706189480861,-207.22426918,0.00052328,31]
[312728137,1706189480870,-562.52,0.00052328,31]
[312728138,1706189480880,-702.37,0.00052328,31]
[312728139,1706189480889,-500.0,0.00052328,31]
[312728140,1706189480898,-500.0,0.00052328,31]
[312728141,1706189480908,-500.0,0.00052328,31]
[312728142,1706189480917,-500.0,0.00052328,31]
[312728143,1706189480927,-500.0,0.00052328,31]
[312728144,1706189480936,-500.0,0.00052328,31]
[312728145,1706189480945,-1562.8,0.00052328,31]
[312728146,1706189480955,-500.0,0.00052328,31]
[312728147,1706189480964,-729.44,0.00052328,31]
[312728148,1706189480973,-674.25,0.00052328,31]
[312728149,1706189480983,-500.0,0.00052328,31]
[312728150,1706189480992,-500.0,0.00052328,31]
[312728151,1706189481003,-1360.58,0.00052328,31]
[312728152,1706189481012,-530.21,0.00052328,31]
[312728153,1706189481022,-694.83,0.00052328,2]
[312728154,1706189481031,-602.29811342,0.00052328,31]
[312728155,1706189481041,-500.0,0.00052328,31]
[312728156,1706189481050,-500.0,0.00052328,31]
[312728157,1706189481059,-650.93,0.00052328,31]
[312728158,1706189481068,-622.63,0.00052328,31]
[312728159,1706189481077,-611.91711068,0.00052328,31]
[312728160,1706189481086,-1172.34,0.00052328,31]
[312728161,1706189481097,-1372.24,0.00052328,31]
[312728162,1706189481107,-500.0,0.00052328,31]
[312728163,1706189481117,-500.0,0.00052328,31]
[312728164,1706189481126,-500.0,0.00052328,31]
[312728165,1706189481135,-500.0,0.00052328,31]
[312728166,1706189481144,-500.0,0.00052328,31]
[312728167,1706189481154,-1771.9,0.00052328,31]
[312728168,1706189481163,-250.0,0.00052329,11]
[312728169,1706189481172,-209.0,0.00052329,9]
[312728170,1706189481181,-144329.95845728,0.00052352,31]
[312728171,1706189481190,-171.0125,0.00052398,26]
[312728172,1706189481200,-1001.5711,0.00052399,2]
[312728173,1706189481210,-150.101,0.000524,30]
[312728174,1706189481219,-150.101,0.000524,30]
[312728175,1706189481229,-150.101,0.000524,30]
[312728176,1706189481238,-150.101,0.000524,30]
[312728177,1706189481247,-150.101,0.000524,30]
[312728178,1706189481256,-150.101,0.000524,30]
[312728179,1706189481265,-150.101,0.000524,30]
[312728180,1706189481275,-150.101,0.000524,30]
[312728181,1706189481284,-281.90047456,0.000524,30]
[312728182,1706189481294,-150.0,0.00052463,12]
[312728183,1706189481304,-150.0,0.00052463,12]
[312728184,1706189481313,-153.30023,0.00052469,5]
[312728185,1706189481323,-1394.28546224,0.00052484,31]
[312728186,1706189481333,-150.0,0.00052487,2]
[312728187,1706189481344,-6148.36519441,0.00052495,30]
[312728188,1706189481353,-832.27573461,0.00052497,2]
[312728189,1706189481362,-171.0125,0.00052498,28]
[312728190,1706189481372,-5989.28183149,0.000525,30]
[312728191,1706189481381,-1000.59953239,0.000525,5]
[312728192,1706189481391,-150.0,0.000525,2]
[312728193,1706189481400,-100000.0,0.000525,30]
[312728194,1706189481409,-156.96023259,0.000525,4]
[312728195,1706189481419,-157.9404551,0.000525,4]
[312728196,1706189481428,-262.79930205,0.000525,15]
[312728197,1706189481438,-119961.77427853,0.000525,30]
[312728198,1706189481675,-41394.19560832,0.000525,30]
[312728199,1706189481686,-112674.08011315,0.000525,30]
[312728200,1706189481695,-150.0,0.000525,120]
[312728201,1706189481705,-180.84621878,0.00052545,60]
[312728202,1706189481714,-160.83203841,0.0005255,60]
[312728203,1706189481723,-2100.0,0.00052574,30]
[312728204,1706189481732,-1224.41,0.00052602,31]
[312728205,1706189481742,-500.0,0.00052602,31]
[312728206,1706189481750,-684.55,0.00052602,31]
[312728207,1706189481759,-500.0,0.00052602,31]
[312728208,1706189481768,-500.0,0.00052602,31]
[312728209,1706189481777,-500.0,0.00052602,31]
[312728210,1706189481786,-500.0,0.00052602,31]
[312728211,1706189481795,-500.0,0.00052602,31]
[312728212,1706189481805,-591.91,0.00052602,31]
[312728213,1706189481814,-500.0,0.00052602,31]
[312728214,1706189481824,-500.0,0.00052602,31]
[312728215,1706189481833,-500.0,0.00052602,31]
[312728216,1706189481844,-503.96,0.00052602,31]
[312728217,1706189481852,-587.15174122,0.00052602,31]
[312728218,1706189481861,-344.77128724,0.00052602,31]
[312728219,1706189481870,-288.67937353,0.00052602,31]
[312728220,1706189481884,-211.32062647,0.00052602,31]
[312728221,1706189481893,-296.00666399,0.00052602,31]
[312728222,1706189481905,-500.0,0.00052602,31]
[312728223,1706189481915,-359.68228344,0.00052602,31]
[312728224,1706189481925,-500.0,0.00052602,31]
[312728225,1706189481934,-500.0,0.00052602,31]